Cogmind - Beta 11.1 @@@ ROGUE MODE // 2022.06.06 @ 13:21:41 Player: ILikeGoodFood Result: Destroyed by as-45496 with Assembled Rifle Performance ------------- Evolutions (0) 0 Regions Visited (0) 0 Robots Destroyed (0) 0 Value Destroyed (0) 0 Prototype IDs (0) 0 Alien Tech Used (0) 0 Bonus (0) 0 TOTAL SCORE: 0 Bonus ------- None Cogmind --------- Core Integrity 0/250 Matter 300/300 Energy 125/125 System Corruption 0% Temperature Cool (0) Movement Treading (160) Location -11/Scrapyard Parts ------- > --- POWER (1) -------- Light Ion Engine > --- PROPULSION (2) --- Light Treads Light Treads > --- UTILITY (2) ------ Small Storage Unit > --- WEAPON (2) ------- Small Laser > --- INVENTORY (8) ---- Compact Wheel Peak State ------------ > --- POWER ------------ Ion Engine > --- PROPULSION ------- Wheel Compact Wheel > --- UTILITY ---------- Small Storage Unit > --- WEAPON ----------- EM Pulse Gun Light Assault Rifle > --- INVENTORY -------- (None) [Rating: 6] Favorites ----------- Power Ion Engine Engine Ion Engine Propulsion Compact Wheel Treads Light Treads Wheel Compact Wheel Utility Small Storage Unit Storage Small Storage Unit Weapon EM Pulse Gun Energy Gun EM Pulse Gun Ballistic Gun Light Assault Rifle Build | -11 ------- Run | Scr Slots Evolved . | . Power . | . Propulsion . | . Utility . | . Weapon . | . Parts Attached 10 | 10 Power 2 | 2 Engine 2 | 2 Core . | . Reactor . | . Propulsion 4 | 4 Treads 2 | 2 Leg . | . Wheel 2 | 2 Hover . | . Flight . | . Utility 1 | 1 Device . | . Storage 1 | 1 Processor . | . Hackware . | . Protection . | . Artifact . | . Weapon 3 | 3 Energy Gun 2 | 2 Energy Cannon . | . Ballistic Gun 1 | 1 Ballistic Cannon . | . Launcher . | . Special Weapon . | . Impact Weapon . | . Slashing Weapon . | . Piercing Weapon . | . Special Melee Weapon . | . Unidentified Prototypes . | . Parts Lost 3 | 3 Power . | . Propulsion 1 | 1 Utility . | . Weapon 2 | 2 Highest Loss Streak 3 | 3 To Critical Strikes . | . Average Slot Usage (%) . | . Naked Turns . | . Heaviest Build 13 | 13 Greatest Support 40 | 40 Greatest Overweight (x) . | . Average Overweight (x) . | . Largest Inventory Capacity 8 | 8 Average Capacity 7 | 7 Most Carried 3 | 3 Average Carried . | . Final Capacity 8 | 8 Final Carried 1 | 1 Class Distribution -------------------- None Dominant Class ---------------- None Resources | -11 ----------- Run | Scr Matter Collected 289 | 289 Remotely . | . Salvage Created 20 | 20 Parts . | . Haulers Intercepted . | . Recyclers Shooed . | . Parts Field Recycled . | . Retrieved Matter . | . Parts Self-Destructed . | . Prevented . | . Kills | -11 ------- Run | Scr Combat Hostiles Destroyed 1 | 1 Melee 1 | 1 Classes Destroyed 1 | 1 Assembled 1 | 1 Best Kill Streak 1 | 1 Combat Bots Only 1 | 1 Max Kills in Single Turn 1 | 1 Gunslinging . | . Exploded . | . Melee 1 | 1 Uniques/NPCs Destroyed . | . Combat | -11 -------- Run | Scr Damage Taken 607 | 607 Core 250 | 250 Absorbed by Shields . | . Core Remaining (%) . | . Volleys Fired 9 | 9 Largest 2 | 2 Hottest 60 | 60 Shots Fired 13 | 13 Gun 13 | 13 Cannon . | . Launcher . | . Special . | . Kinetic 4 | 4 Thermal 5 | 5 Explosive . | . Electromagnetic 4 | 4 Robot Hit Streak 3 | 3 Robot Miss Streak 1 | 1 Penetration Max . | . Secondary Targets . | . Shots Hit Robots 8 | 8 Core Hits 8 | 8 Critical Kills . | . Critical Parts Destroyed . | . Critical Strikes . | . Melee Attacks . | . Impact . | . Slashing . | . Piercing . | . Sneak Attacks . | . Combat Hostiles . | . Follow-up Attacks . | . Damage Inflicted 102 | 102 Guns 83 | 83 Cannons . | . Explosions . | . Melee . | . Ramming 19 | 19 Kinetic 16 | 16 Thermal 23 | 23 Explosive . | . Electromagnetic 44 | 44 Impact . | . Slashing . | . Piercing . | . Highest Corruption . | . Average Corruption . | . Corruption Purged . | . Corruption Blocked . | . Overload Shots . | . Overflow Damage . | . Projectiles . | . Explosions . | . Melee . | . Knockbacks . | . Impact . | . Kinetic . | . Secondary . | . Self-Inflicted Damage . | . Shots . | . Rammed 16 | 16 Targets Rammed 16 | 16 Kicked . | . Crushed . | . Highest Temperature 40 | 40 Average Temperature 24 | 24 Received Heat Transfer . | . Siege Activations . | . Robots Corrupted . | . Combat Hostiles . | . Parts Fried . | . Impact Corruptions . | . Robots Melted . | . Combat Hostiles . | . Parts Melted . | . Heat Transferred 50 | 50 Parts Sabotaged . | . Parts Stolen . | . Parts Stripped . | . Power Chain Reactions . | . Missiles Intercepted . | . Alert | -11 ------- Run | Scr Peak Influence . | . Initial . | . Average . | . Maximum Alert Level . | . Low Security (%) 100 | 100 Level 1 . | . Level 2 . | . Level 3 . | . Level 4 . | . Level 5 . | . High Security . | . Max Security . | . Squads Dispatched . | . Investigation . | . Extermination . | . Reinforcement . | . Assault . | . Garrison . | . Intercept . | . Searches Triggered . | . Construction Impeded . | . Haulers Reinforced . | . Active Scanning Responses . | . Cargo Convoy Interrupts . | . Stealth | -11 --------- Run | Scr Distress Signals . | . Communications Jammed . | . Distress Signals . | . Times Spotted 4 | 4 Peak Tracking Total 2 | 2 Tactical Retreats . | . Traps | -11 ------- Run | Scr Traps Triggered . | . Indirectly . | . Trap Hack Attempts . | . Triggered . | . Disarmed . | . Reprogrammed . | . Reused . | . Traps Extracted . | . Installed . | . Triggered . | . Machines | -11 ---------- Run | Scr Machines Disabled . | . Max in Single Turn . | . Machines Sabotaged . | . Garrisons Compromised . | . Overloaded Fab Kills . | . Hacking | -11 --------- Run | Scr Machines Accessed . | . Terminals . | . Fabricators . | . Repair Stations . | . Recycling Units . | . Scanalyzers . | . Garrison Access . | . Total Hacks . | . Successful . | . Failed . | . Catastrophic . | . Database Lockouts . | . Manual . | . Terminals . | . Fabricators . | . Repair Stations . | . Recycling Units . | . Scanalyzers . | . Garrison Access . | . Terminal Hacks . | . Fabricator Hacks . | . Repair Station Hacks . | . Recycling Unit Hacks . | . Scanalyzer . | . Garrison Access Hacks . | . Unauthorized Hacks . | . Terminals . | . Fabricators . | . Repair Stations . | . Recycling Units . | . Scanalyzers . | . Garrison Access . | . Data Cores Recovered . | . Used . | . Hacking Detections . | . Full Trace Events . | . Feedback Events . | . Feedback Blocked . | . Robot Schematics Acquired . | . Robots Built . | . Authchips . | . Time . | . Total Robot Build Rating . | . Part Schematics Acquired . | . Parts Built . | . Authchips . | . Time . | . Total Part Build Rating . | . Parts Repaired . | . Time . | . Parts Recycled . | . Recycled Matter . | . Retrieved Matter . | . Retrieved Components . | . Parts Scanalyzed . | . Part Schematics Acquired . | . Parts Damaged . | . Bothacking | -11 ------------ Run | Scr Used RIF Installer . | . Robots Hacked . | . Non-combat . | . Combat . | . Robot Hacks Applied . | . Relay Couplers Released . | . Fabnet Peak Effective % . | . Robots Rewired . | . Allies Hacked . | . Hacks Repelled . | . Allies | -11 -------- Run | Scr Total Allies . | . Largest Group . | . Highest-Rated Group . | . Highest-Rated Ally . | . Total Orders . | . Ally Attacks . | . Total Damage . | . Kills . | . Allies Corrupted . | . Allies Melted . | . Intel | -11 ------- Run | Scr Robot Analysis Total . | . Derelict Logs Recovered . | . Drone Launches . | . Drone Recoveries . | . Exploration | -11 ------------- Run | Scr Turns Passed 2227 | 2227 Spaces Moved 151 | 151 Core 7 | 7 Treads 75 | 75 Legs . | . Wheels 69 | 69 Hover . | . Flight . | . Fastest Speed 50 | 50 Average Speed 124 | 124 Slowest Speed 160 | 160 Overloaded Moves . | . Propulsion Burnouts . | . Robots Hopped . | . Cave-ins Triggered . | . Exploration Rate (%) 16 | 16 Regions Visited . Branch Regions . Pre-discovered Areas . | . Known Exits Taken . | . Unknown Exits Taken . | . Scrap Searched . | . Spaces Dug . | . Terrain Destroyed . | . Melee . | . Projectile . | . AOE . | . Terrain Rammed . | . Walls Destroyed . | . Machines Disabled . | . Actions | -11 --------- Run | Scr Total 2168 | 2168 Wait 1971 | 1971 Move 151 | 151 Hop . | . Pick Up 10 | 10 Fast Attach . | . Attach 8 | 8 Detach . | . Swap 2 | 2 Drop 1 | 1 Fire 9 | 9 Melee . | . Ram . | . Kick . | . Crush 16 | 16 Escape Stasis . | . Rewire . | . Trap . | . Miscellaneous . | . Route ------- -11/Scrapyard (discovered 1 exit: [*Mat]) History --------- Turn | Location | Event 28 | -11/Scrapyard | Discovered new exit (range 15) 2017 | -11/Scrapyard | Assembled infested the area 2021 | -11/Scrapyard | Core integrity fell below 50% 2057 | -11/Scrapyard | Lost 3 parts (1n2w) 2143 | -11/Scrapyard | Core integrity fell below 20% 2228 | -11/Scrapyard | Destroyed by as-45496 with Assembled Rifle Last Messages --------------- C-30 ARC bursts open, deploying its payload. D-53 Grenadier unfolds itself. D-53 Grenadier destroyed. Wheel destroyed. EM Pulse Gun destroyed. Lgt. Assault Rifle destroyed. D-53 Grenadier destroyed. The unstable cave ceiling collapses. Acquired Lgt. Ion Engine. Acquired Sml. Laser. Dropped Ion Engine. Acquired Lgt. Treads. K-01 Serf destroyed. Acquired 45 matter. as-89953 sneak attacks. T-07 Excavator system corrupted by crushing effect. T-07 Excavator system terminally corrupted. Slammed into as-89953. as-89953 destroyed. Slammed into as-45496. Map ----- +----------------------------------------------------+ | ????????????????????????????????? ????????????? | | ????????????????????????????????? ????????????? | | ????????????????????????????????? ????????????? | | ????????????????????????????????? ????????????? | | ?????????????????????????????????# #????????????? | | ???????????????????????????????### #????????????? | | ???????????????????????????????? # #??########??? | | ????????????????????????????????? #??# #??? | | ???????? ????????????????????????# #??# #??? | | ???????# ???????????????????????# #??# #??? | | ???????# ???????????????????#### #### #??? | | ???????# ?????##########???# #??? | | ???????? ????# #???# ???? | | ?????????? ???# = #???# ## ###### | | ??????####### ### =##### | | ????? % | | ????? %%%%! # ###### | | ????????###### ###*%%%= ##### < #??? | | ?????????????????# %%%% #???# #??? | | ?????????????????# % #???##### #??? | | ?????????????????####% ####???????###### #??? | | ????????????????????#%%#???????????????# #??? | | ????????????????????#% #???????????????# #??? | | ????????????????????#% #??????#################??? | | ????????????????????# ######## #????????? | | ????????????????????# a@ # #????????? | | ????????????????????# #????????? | | ????????????????????######## # #????????? | | ???????????????????######### # #????????? | | ???????????????????# # # #????????? | | ???????????????????# # #????????? | | ???????????????????# # # #????????? | | ???????????????????######### ###########????????? | | ??????????????????????????## ##?????????????????? | | ???????????????# ########## ##########????????? | | ????????????? ?????? | | ????????????? ?????? | | ???????????????# ########## ############??????? | | ??????????????????????????######?????????????????? | | ?????????????????????????????????????????????????? | | ?????????????????????????????????????????????????? | | ?????????????????????????????????????????????????? | | ?????????????????????????????????????????????????? | | ?????????????????????????????????????????????????? | | ?????????????????????????????????????????????????? | | ?????????????????????????????????????????????????? | | ?????????????????????????????????????????????????? | | ?????????????????????????????????????????????????? | | ?????????????????????????????????????????????????? | | ?????????????????????????????????????????????????? | +----------------------------------------------------+ Best States ------------- Heat Dissipation 25 Energy Generation 10 Energy Capacity 250 Matter Stores 300 Matter Capacity 300 Sight Range 16 Terrain Scan Density 10 Evasion (%) 42 Recoil Reduction 2 Item Schematics ----------------- None Robot Schematics ------------------ None Fabricated ------------ Nothing Alien Tech Used ----------------- None Achievements -------------- Curiosity Killed The Cat Challenges ------------ None Game ------ Seed ConcussiveOpticalScreen Manual? 0 Play Time 00:08:42 Cumulative 20.0 hours Start 2022.06.06 @ 13:16:51 End 2022.06.06 @ 13:21:41 Sessions 0 Manual Loads 0 Difficulty Rogue Special Mode None Game No. 40 Rogue 40 Adventurer 0 Explorer 0 Win Type - Total 0 Types 0/0/0/0/0/0/0/0/0 Lore% 19 Gallery% 22 Achievement% 18 Wizard Run 0 Options --------- ASCII 0 Keyboard 0 Movement Mouse Keybinds 0 Fullscreen 1 Font 18/SmallcapsGlow Map View 76x50 Tactical HUD 0 Map Filters NONE Filters NONE Steam 1 RUN: e47c0501-2cbb-42bb-89f3-b9772c395f1f